[Event "Alef Super Stars Blitz 2023"]
[Site "Almamsha"]
[Date "2023.12.06"]
[Round "6.1"]
[White "Salem, A.R. Saleh"]
[Black "Yu, Yangyi"]
[Result "0-1"]
[ECO "E27"]
[WhiteElo "2639"]
[BlackElo "2714"]
[Annotator "TA"]
[PlyCount "107"]
[EventDate "2023.11.27"]
[EventType "tourn"]
[EventCountry "UAE"]
[SourceTitle "playchess.com"]
[Source "ChessBase"]
[SourceQuality "1"]
[TimeControl "180+2"]

{[%evp 11,107,-12,20,-10,-20,-31,-10,-19,0,-37,-31,-63,-23,-68,-29,-117,-112,-101,-123,-174,-168,-202,-192,-200,-180,-210,-210,-212,-187,-195,-184,-175,-139,-139,-123,-161,-135,-146,-91,-69,-51,-49,0,-93,-85,-86,-78,-78,-78,-145,-152,-252,-252,-264,-44,-44,-17,-23,0,0,0,-106,-106,-112,-35,-55,-37,-25,-21,-125,-100,-143,-116,-104,-123,-119,-127,-339,-219,-209,0,0,0,0,0,0,0,0,0,0,620,637,677,610,29985,0,0,-29988]} 1. d4 {[%emt 0:00:00]} Nf6 {[%emt 0:00:01]} 2. c4 {[%emt 0:00:01]} e6 {[%emt 0:00:01]} 3. Nc3 {[%emt 0:00:01]} Bb4 {[%emt 0:00:04]} 4. a3 {[%emt 0:00:00]} Bxc3+ {[%emt 0:00:02]} 5. bxc3 {[%emt 0:00:01]} O-O {[%emt 0:00:05]} 6. f3 {[%emt 0:00:01]} Ne8 {[%emt 0:00:06][%cal Oc7c5]} 7. h4 {[%emt 0:00:05] [#] E27: Nimzo-Indian: Sämisch: 5...0-0 6 f3.} c5 $1 {[%emt 0:00:10]} 8. h5 {[%emt 0:00:01]} (8. e4 Nc6) 8... h6 {[%emt 0:00:06] [#]} 9. e4 $146 {[%emt 0:00:09]} ({Predecessor:} 9. Nh3 cxd4 10. cxd4 b5 11. cxb5 a6 12. g4 f6 13. Qd3 Qa5+ 14. Bd2 Qxb5 15. e3 Qxd3 16. Bxd3 {½-½ Maze,S (2539)-David,A (2533) FRA-chT Top 16 GpA 2023 (5.3)}) 9... d5 {[%emt 0:00:05]} 10. e5 {[%emt 0:00:23]} Nc6 {[%emt 0:00:03]} 11. Be3 {[%emt 0:00:25]} Qa5 {[%emt 0:00:09]} 12. Qd2 {[%emt 0:00:08]} Nc7 {[%emt 0:00:15]} 13. f4 {[%emt 0:00:13]} (13. Rh4 $11 {remains equal.}) 13... cxd4 $17 {[%emt 0:00:09]} 14. cxd4 {[%emt 0:00:02]} Qxd2+ {[%emt 0:00:01]} 15. Kxd2 {[%emt 0:00:01]} (15. Bxd2 $17 Nxd4 16. Rd1) 15... Na5 $1 $19 {[%emt 0:00:03] aiming for ...Nb3+.} 16. Ke1 {[%emt 0:01:08]} dxc4 {[%emt 0:00:06][%cal Bd5c4,Bc4c3,Bc3c2][%mdl 32]} (16... Nxc4 17. Kf2 $17) 17. Rb1 {[%emt 0:00:37]} Nd5 {[%emt 0:00:02]} 18. Bd2 {[%emt 0:00:08]} c3 {[%emt 0:00:03]} 19. Bc1 {[%emt 0:00:01]} Bd7 {[%emt 0:00:08]} 20. Bd3 {[%emt 0:00:03]} Rfc8 {[%emt 0:00:05]} 21. Ne2 {[%emt 0:00:01]} Rab8 {[%emt 0:00:15]} 22. Rh3 {[%emt 0:00:05]} Ba4 {[%emt 0:00:21]} 23. f5 {[%emt 0:00:03][%cal Of5f6]} c2 {[%emt 0:00:08]} 24. Rb2 {[%emt 0:00:01][%cal Of5f6]} Nc4 {[%emt 0:00:01] Excellent horsemanship.} (24... Nb3 $142 25. Bxc2 Nxc1 26. Bxa4 Nxe2 27. Rxe2 Nf4 28. fxe6 Rc1+ 29. Kd2 Rc4 30. exf7+ Kf8) 25. Ra2 $17 {[%emt 0:00:07]} Bb3 {[%emt 0:00:04] Black is much more active.} 26. Ra1 {[%emt 0:00:00][%cal Of5f6]} a5 {[%emt 0:00:32]} (26... Rc6 $15) 27. Rg3 {[%emt 0:00:03]} (27. f6 $1 $11 gxf6 28. exf6) 27... Kh8 {[%emt 0:00:03]} 28. Be4 {[%emt 0:00:02]} a4 {[%emt 0:00:05]} 29. Bxd5 {[%emt 0:00:02]} exd5 {[%emt 0:00:01]} 30. Nf4 {[%emt 0:00:01]} (30. Bd2 $142) 30... Na5 {[%emt 0:00:10]} 31. e6 {[%emt 0:00:04]} (31. Bb2 $17 {is a better defense.}) 31... fxe6 $1 $19 {[%emt 0:00:05]} 32. Nxe6 {[%emt 0:00:03]} Re8 $2 {[%emt 0:00:06]} (32... Bc4 $1 $19 {...Bb5 is the strong threat.} 33. Rxg7 Rg8 34. Bxh6 Nb3 35. Rxg8+ Rxg8) 33. Bf4 $1 $15 {[%emt 0:00:02]} Rbc8 {[%emt 0:00:02] White must now prevent ...Re7.} 34. Rc1 {[%emt 0:00:01][%cal Of4e5] And now Be5! would win.} Nc6 {[%emt 0:00:01]} 35. Kd2 {[%emt 0:00:02]} Re7 {[%emt 0:00:05]} 36. Bd6 {[%emt 0:00:04]} (36. Rg6 $1 $11) 36... Rf7 $1 $36 {[%emt 0:00:01][%mdl 2048] Black has strong initiative.} 37. Rf3 {[%emt 0:00:02]} Kh7 {[%emt 0:00:09]} ({Black should play} 37... Na5 $17 {...Nc4+ would be deadly.} 38. Bb4 Nc4+ 39. Ke2 Re8) 38. g4 $15 {[%emt 0:00:01]} Na5 {[%emt 0:00:01]} 39. g5 $1 {[%emt 0:00:02]} Nc4+ {[%emt 0:00:05]} (39... Kg8 $5 {[%cal Ra5c4]} 40. g6 Nc4+ 41. Ke1 Nxd6 42. gxf7+ Kxf7 $17) 40. Ke2 {[%emt 0:00:02]} (40. Ke1 $1 $11 Kg8 41. g6 Nxd6 42. gxf7+ Kxf7 43. Nc5) 40... Nxd6 {[%emt 0:00:11]} 41. g6+ {[%emt 0:00:01]} Kg8 {[%emt 0:00:00]} 42. gxf7+ {[%emt 0:00:01]} Kxf7 {[%emt 0:00:01] Threatens to win with ...b6.} 43. Nc5 {[%emt 0:00:04]} Nb5 {[%emt 0:00:04][%csl LRa3,LRd4]} 44. Kd3 {[%emt 0:00:04]} (44. Kd2 $17) 44... Bc4+ {[%emt 0:00:02]} (44... Nxa3 45. Rg3 $17) 45. Ke3 {[%emt 0:00:02] [#]} Re8+ $2 {[%emt 0:00:01]} (45... Nxa3 46. Rg3 $15) (45... Be2 $1 $19 {[%cal Re2f3]} 46. Rh3 Re8+ 47. Kd2 Bd1 48. Rxd1 cxd1=N 49. Kxd1 Nxd4 50. Nxa4 Nxf5) 46. Ne6 $11 {[%emt 0:00:01]} Nxa3 {[%emt 0:00:03] Hoping for ...b5.} 47. Rg1 {[%emt 0:00:01][%cal Oe3d2]} Nb5 {[%emt 0:00:08][%cal Oc4e2]} 48. Rxg7+ {[%emt 0:00:01]} Kf6 {[%emt 0:00:00]} 49. Rg6+ {[%emt 0:00:01]} Ke7 {[%emt 0:00:03] Really sharp!} 50. Kd2 {[%emt 0:00:01]} Kd7 $2 {[%emt 0:00:07][%mdl 8192]} (50... Rc8 $11 51. Re3 (51. Rxh6 $2 c1=B+ {[%mdl 64] Decoy} 52. Kxc1 Be2+ {[%mdl 64] Discovered Attack} 53. Kd2 Bxf3 $19) 51... Bd3 52. Nf4+ (52. Rxd3 c1=Q+ 53. Ke2 Rc2+ 54. Kf3 Qf1+ 55. Kg4 Qxd3 56. Nf4 Qd1+ 57. Kg3 Qg1+ 58. Kh4 Rh2+ 59. Nh3 Qe1+ 60. Rg3 Nxd4 61. f6+ Kxf6 62. Kg4 Qe4+ 63. Nf4 Qf5#) 52... Be4 53. Nxd5+ (53. Rxh6 $2 c1=Q+ 54. Ke2 Rc2#) 53... Kf8 54. Rf6+ (54. Rxe4 $2 c1=Q+ 55. Kd3 Qa3+ 56. Kd2 Qa2+ 57. Ke3 Qxd5 $19) 54... Kg7 55. Rg6+ (55. Rxe4 $2 c1=Q+ 56. Kd3 Qc4+ 57. Ke3 Qxd5 $19) 55... Kf7 56. Rf6+ (56. Rxe4 c1=Q+ 57. Kd3 Qc4+ 58. Kd2 Qa2+ 59. Ke3 Qxd5 60. Rgg4 a3 61. Rgf4 Rc3+ 62. Kf2 Nxd4 63. Kg1 a2 64. Rg4 a1=Q+ 65. Kh2 Rc2+ 66. Rg2 Qxe4 67. Rxc2 Qah1+ {[%mdl 64] Skewer} 68. Kg3 Qhh4#) 56... Kg7 57. Rg6+ (57. Rxe4 c1=Q+ 58. Kd3 Qc4+ 59. Kd2 Qc1+ 60. Kd3 Qc4+ 61. Ke3 Qxd5 62. Rg6+ Kf7 63. Rge6 Qxf5 64. Re7+ Kf8 65. Ke2 Nc3+ 66. Ke3 Nd5+ 67. Ke2 Nxe7 68. Ke3 Nd5+ 69. Kd3 Qf3+ {[%mdl 64] Deflection} 70. Kd2 Qxe4 71. Kd1 Qg2 72. Ke1 Rc1#) 57... Kf8 58. Rf6+ (58. Rxe4 c1=Q+ 59. Kd3 Qa3+ 60. Kd2 Qc1+ 61. Kd3 Qc4+ 62. Kd2 Qa2+ 63. Ke3 Qxd5 64. Rxh6 Rc3+ 65. Kf4 Nxd4 66. Rh8+ Kg7 67. Re7+ Kxh8 68. Re8+ Kg7 69. h6+ Kxh6 70. Re3 Ne2+ {[%mdl 64] Deflection} 71. Rxe2 Rf3+ 72. Kg4 Qxf5+ 73. Kh4 Qh5#) 58... Kg7) 51. Re3 $18 {[%emt 0:00:03] Strongly threatening Nc5+.} (51. Kxc2 Be2 52. Rf2 Bxh5 53. Rxh6 Bf7 $18) 51... b6 {[%emt 0:00:01] [#] Against Nc5+} 52. f6 $1 {[%emt 0:00:05]} Rxe6 {[%emt 0:00:02] [#]} (52... Nd6 53. Rg7+) 53. f7 $2 {[%emt 0:00:00]} (53. Rg7+ $1 {mates} Kd6 54. f7 Rf6 55. Rg6 Rxg6 56. f8=Q+ (56. f8=R Rg2+ 57. Kc1 Nxd4 58. Rc3 Nb3+ 59. Rxb3 axb3 60. Rf6+ Kc5 61. Rg6 Re2 62. Rg1 Kb4 63. Kb2 c1=R+ {[%mdl 64] Decoy, Promotion} 64. Kxc1 b2+ 65. Kb1 Bd3+ 66. Ka2 b1=Q#) 56... Kc6 57. hxg6 Nc3 58. g7 (58. Kxc3 $2 c1=Q+ 59. Kb4 Qb2+ 60. Kxa4 Bb5#) 58... Ne4+ 59. Kxc2) 53... Rxe3 {[%emt 0:00:06]} (53... Nxd4 $2 54. f8=Q (54. f8=B Rxe3 55. Bxh6 Rd3+ 56. Ke1 Rd1+ 57. Kf2 Nf5 $19) 54... Rxg6 55. hxg6 $18) 54. Rd6+ $2 {[%emt 0:00:06][%mdl 8192] Both players deserved the win here.   Weighted Error Value: White=0.31/Black=0.41} (54. f8=R {is a self mate.} Re2+ 55. Kc1 Nxd4 56. Rg7+ Kc6 57. Rg6+ Kb5) (54. f8=Q $11 Rd3+ 55. Kxc2 Nxd4+ 56. Kb1 Rd1+ 57. Kb2 Rd2+ 58. Kc3 Rd3+ 59. Kb2 (59. Kb4 $2 {leads to mate.} Rb3+ 60. Kxa4 Bb5#) 59... Rd2+ 60. Kc3 Rd3+ 61. Kb2 (61. Kb4 $2 Rb3+ 62. Kxa4 Bb5#) 61... Rd2+) 0-1

[Event "Alef Super Stars Blitz 2023"]
[Site "Almamsha"]
[Date "2023.12.06"]
[Round "6.2"]
[White "Nihal Sarin"]
[Black "Sjugirov, Sanan"]
[Result "1/2-1/2"]
[ECO "A17"]
[WhiteElo "2688"]
[BlackElo "2703"]
[Annotator "TA"]
[PlyCount "57"]
[EventDate "2023.11.27"]
[EventType "tourn"]
[EventCountry "UAE"]
[SourceTitle "playchess.com"]
[Source "ChessBase"]
[SourceQuality "1"]
[TimeControl "180+2"]

{[%evp 9,57,4,4,0,22,12,12,15,41,0,1,0,0,0,0,0,12,1,15,20,18,20,9,16,16,0,0,0,9,0,14,4,8,8,7,15,3,0,0,0,0,0,0,0,0,0,0,0,0,0]} 1. Nf3 {[%emt 0:00:01]} d5 {[%emt 0:00:01]} 2. e3 {[%emt 0:00:02]} Nf6 {[%emt 0:00:01]} 3. c4 {[%emt 0:00:00]} e6 {[%emt 0:00:02]} 4. Nc3 {[%emt 0:00:02]} Bd6 {[%emt 0:00:01]} 5. b3 {[%emt 0:00:02]} O-O {[%emt 0:00:02]} 6. Bb2 {[%emt 0:00:00] A17: English Opening: 1...Nf6 with ...Bb4.} Nc6 {[%emt 0:00:01]} 7. d4 {[%emt 0:00:09]} dxc4 {[%emt 0:00:07]} 8. Bxc4 {[%emt 0:00:09]} e5 {[%emt 0:00:04] [#]} 9. dxe5 $146 {[%emt 0:00:05]} ({Predecessor:} 9. d5 Ne7 10. Qc2 Bf5 11. e4 Bg4 12. O-O-O c6 13. dxc6 Nxc6 14. Nb5 Bc5 15. Rxd8 {1-0 Schnatz,W-Baer,W DESC SZ071 email 2008}) 9... Nxe5 {[%emt 0:00:01] The position is equal.} 10. Be2 {[%emt 0:00:03]} (10. Nxe5 {is interesting.} Bxe5 11. Qc2 Re8 12. O-O) 10... Nxf3+ {[%emt 0:00:04]} 11. Bxf3 {[%emt 0:00:09]} Qe7 {[%emt 0:00:05]} 12. O-O {[%emt 0:00:06]} c6 {[%emt 0:00:06] Prevents Nb5} 13. Ne2 {[%emt 0:00:10]} Be5 {[%emt 0:00:12]} 14. Bxe5 {[%emt 0:00:04]} Qxe5 {[%emt 0:00:01]} 15. Qd4 {[%emt 0:00:02]} Qe7 {[%emt 0:00:26]} 16. Qf4 {[%emt 0:00:01]} a5 {[%emt 0:00:13]} 17. a3 {[%emt 0:00:01]} Be6 {[%emt 0:00:08]} 18. Nd4 {[%emt 0:00:02]} Rfd8 {[%emt 0:00:04]} 19. h3 {[%emt 0:00:06]} g6 {[%emt 0:00:07]} 20. Nxe6 {[%emt 0:00:38]} Qxe6 {[%emt 0:00:01]} 21. b4 {[%emt 0:00:01]} Nd5 {[%emt 0:00:18]} 22. Qc4 {[%emt 0:00:20]} Qe5 {[%emt 0:00:17]} 23. Rad1 {[%emt 0:00:28]} axb4 {[%emt 0:00:09]} 24. Bxd5 {[%emt 0:00:04][%mdl 64] [#] Remove Defender} Rxd5 {[%emt 0:00:04]} 25. Rxd5 {[%emt 0:00:09]} Qxd5 {[%emt 0:00:01]} 26. Qxd5 {[%emt 0:00:01]} cxd5 {[%emt 0:00:00]} 27. axb4 $11 {[%emt 0:00:01] KR-KR} Ra4 {[%emt 0:00:08]} 28. Rd1 {[%emt 0:00:01]} Rxb4 {[%emt 0:00:02]} 29. Rxd5 {[%emt 0:00:01] A rather calm draw.   Weighted Error Value: White=0.05 (flawless) /Black=0.03 (flawless)} 1/2-1/2

[Event "Alef Super Stars Blitz 2023"]
[Site "Almamsha"]
[Date "2023.12.06"]
[Round "7.1"]
[White "Nihal Sarin"]
[Black "Salem, A.R. Saleh"]
[Result "1-0"]
[ECO "D04"]
[WhiteElo "2688"]
[BlackElo "2639"]
[Annotator "TA"]
[PlyCount "119"]
[EventDate "2023.11.27"]
[EventType "tourn"]
[EventCountry "UAE"]
[SourceTitle "playchess.com"]
[Source "ChessBase"]
[SourceQuality "1"]
[TimeControl "180+2"]

{[%evp 11,119,15,18,12,17,0,6,0,0,0,0,0,0,0,16,0,0,0,0,0,0,0,0,0,0,0,23,24,24,25,20,0,79,83,79,76,76,79,79,0,0,0,0,0,155,152,124,84,197,194,196,181,180,150,226,183,215,210,262,207,408,418,393,355,326,220,179,179,358,357,414,370,2570,2581,2205,2229,6235,5393,29969,29970,29977,29978,29980,29980,29982,29982,29982,0,29979,0,29982,29977,29977,29972,29975,0,29970,29972,29981,29982,29983,29984,29984,29985,29989,29990,29990,29987,29990,29991]} 1. d4 {[%emt 0:00:01]} Nf6 {[%emt 0:00:00]} 2. Nf3 {[%emt 0:00:01]} g6 {[%emt 0:00:01]} 3. Nbd2 {[%emt 0:00:01]} d5 {[%emt 0:00:01]} 4. b3 {[%emt 0:00:01]} Bg7 {[%emt 0:00:03]} 5. Bb2 {[%emt 0:00:01]} O-O {[%emt 0:00:02]} 6. e3 {[%emt 0:00:01]} Bf5 {[%emt 0:00:05]} 7. Be2 {[%emt 0:00:04] D04: Colle System.} Ne4 {[%emt 0:00:01]} 8. c4 {[%emt 0:00:12] [#]} dxc4 $146 {[%emt 0:00:08]} ({Predecessor:} 8... c5 9. Rc1 e6 10. O-O Nc6 11. cxd5 exd5 12. Ne5 Nxe5 13. dxe5 b6 14. Qe1 Be6 {½-½ Bourgault,J (1964)-Manarin,F (1972) W-ch WS/H/822 email 2021}) 9. Bxc4 {[%emt 0:00:39] The position is equal.} c5 {[%emt 0:00:02]} 10. Qc1 {[%emt 0:00:09]} Nxd2 {[%emt 0:00:04]} 11. Qxd2 {[%emt 0:00:02]} Nc6 {[%emt 0:00:01]} 12. Rd1 {[%emt 0:00:02]} Bg4 {[%emt 0:00:19]} 13. dxc5 {[%emt 0:00:24]} Bxb2 {[%emt 0:00:02]} 14. Qxb2 {[%emt 0:00:01]} Qa5+ {[%emt 0:00:02]} 15. Rd2 {[%emt 0:00:02][%cal Ob3b4]} Bxf3 {[%emt 0:00:32]} 16. gxf3 {[%emt 0:00:01]} Qxc5 {[%emt 0:00:15]} 17. O-O {[%emt 0:00:16][%cal Be1g1,Bg1g2,Bg2h1][%mdl 32]} Qh5 {[%emt 0:00:16]} 18. Be2 {[%emt 0:00:08]} Ne5 {[%emt 0:00:44]} 19. Kg2 $1 {[%emt 0:00:02] [#] Rd5 would be deadly.} Qg5+ {[%emt 0:00:02]} 20. Kh1 {[%emt 0:00:01] And now f4 would win.} Nc6 {[%emt 0:00:34]} 21. Rd7 {[%emt 0:00:04][%cal Bd2d7,Bd7b7,Bb7b5][%mdl 32]} Rfd8 {[%emt 0:00:09]} (21... Rab8 $11 {keeps the balance.}) 22. Rxb7 $16 {[%emt 0:00:07] White is more active.} Rd6 {[%emt 0:00:01]} 23. Rb5 {[%emt 0:00:16]} Qh4 {[%emt 0:00:02]} 24. Rc5 {[%emt 0:00:28]} Rad8 {[%emt 0:00:01]} 25. a3 {[%emt 0:00:01]} (25. Qc3 $16 Rd2 26. Qc4 Qxc4 27. Bxc4) 25... Rd2 $11 {[%emt 0:00:16]} 26. Rc2 {[%emt 0:00:03]} R8d5 {[%emt 0:00:03][%cal Od5h5] [#] ( -> ...Rh5!)} 27. f4 {[%emt 0:00:21]} (27. Rxd2 $2 Rh5 $19) 27... Rxc2 {[%emt 0:00:06]} (27... Qh3 $11 28. Re1 (28. Rxd2 Rh5) 28... Rxe2 {[%mdl 64] Remove Defender} 29. Rcxe2 Qf3+ 30. Kg1 Qg4+ 31. Kf1 Qh3+ 32. Kg1 Qg4+ 33. Kh1 Qf3+ 34. Kg1 Qg4+) 28. Qxc2 $16 {[%emt 0:00:01]} Rd6 {[%emt 0:00:02]} 29. Kg2 {[%emt 0:00:16]} Nd8 {[%emt 0:00:02]} (29... g5 $16 30. fxg5 (30. Qf5 gxf4 31. Kh1 Kf8 $14) 30... Qxg5+ 31. Kh1 Qd5+ 32. f3 Ne5) 30. Rd1 {[%emt 0:00:02]} Qf6 {[%emt 0:00:02]} 31. Rxd6 {[%emt 0:00:03]} Qxd6 $18 {[%emt 0:00:01][%mdl 4096] Endgame KQB-KQN} 32. b4 {[%emt 0:00:02]} f6 {[%emt 0:00:03]} (32... e5 $16) 33. Qd3 {[%emt 0:00:04]} Qb8 {[%emt 0:00:02]} 34. Qd7 {[%emt 0:00:04] Hoping for Qe8+.} Kf8 {[%emt 0:00:01] Prevents Qe8+.} 35. Bc4 {[%emt 0:00:04]} Qa8+ $2 {[%emt 0:00:01]} (35... Qb7+ {is a better defense.} 36. Qxb7 Nxb7) 36. Bd5 {[%emt 0:00:01]} Qb8 {[%emt 0:00:00]} 37. a4 {[%emt 0:00:04]} Nf7 {[%emt 0:00:06]} 38. Bxf7 {[%emt 0:00:02]} Kxf7 {[%emt 0:00:06] KQ-KQ} 39. b5 {[%emt 0:00:01] Black must now prevent Qd5+.} Qa8+ {[%emt 0:00:00]} (39... Qb6 40. Kf3 Qa5) 40. Kg1 {[%emt 0:00:04]} Qf3 {[%emt 0:00:00]} 41. a5 {[%emt 0:00:01]} ({Not} 41. Qxa7 Qg4+ 42. Kh1 (42. Kf1 Qd1+ 43. Kg2 Qg4+ 44. Kh1 Qf3+ 45. Kg1 Qg4+ 46. Kh1 Qf3+ 47. Kg1 $11) 42... Qf3+ 43. Kg1 Qg4+ 44. Kh1 (44. Kf1 Qd1+ 45. Kg2 Qg4+ 46. Kh1 Qf3+ 47. Kg1 $11) 44... Qf3+ 45. Kg1 $11) 41... Qe2 $2 {[%emt 0:00:03]} (41... Qe4 42. a6 Qb1+ 43. Kg2 Qe4+ 44. Kg3 h5) 42. Qd5+ {[%emt 0:00:02]} ({And not} 42. Qxa7 Qg4+ 43. Kh1 (43. Kf1 Qd1+ 44. Kg2 Qg4+ 45. Kh1 Qf3+ 46. Kg1 Qg4+ 47. Kh1 Qf3+ 48. Kg1 Qg4+ $11) 43... Qf3+ 44. Kg1 Qg4+ 45. Kh1 (45. Kf1 Qd1+ 46. Kg2 Qg4+ 47. Kh1 Qf3+ 48. Kg1 Qg4+ $11) 45... Qf3+ 46. Kg1 Qg4+ $11) 42... Kg7 {[%emt 0:00:00]} 43. b6 {[%emt 0:00:02]} axb6 {[%emt 0:00:03]} 44. axb6 {[%emt 0:00:01] White wants to mate with b7.} Qb2 {[%emt 0:00:03]} 45. b7 {[%emt 0:00:01]} h5 {[%emt 0:00:00]} 46. h3 {[%emt 0:00:02]} h4 {[%emt 0:00:01]} 47. Kg2 {[%emt 0:00:02]} Qb1 {[%emt 0:00:01]} 48. Qc6 {[%emt 0:00:03]} Kf7 {[%emt 0:00:04]} 49. Qd5+ {[%emt 0:00:03]} Kg7 {[%emt 0:00:00]} 50. Qc6 {[%emt 0:00:01]} Kf7 $1 {[%emt 0:00:02]} 51. e4 {[%emt 0:00:01]} Kg7 {[%emt 0:00:01]} 52. Qd5 {[%emt 0:00:05]} Qb4 {[%emt 0:00:02]} 53. Qc6 {[%emt 0:00:02]} Qb1 $1 {[%emt 0:00:03]} 54. e5 {[%emt 0:00:01] White mates.} fxe5 {[%emt 0:00:03]} 55. fxe5 {[%emt 0:00:01]} Kh6 {[%emt 0:00:01]} 56. Qf3 {[%emt 0:00:03]} Kg7 {[%emt 0:00:02]} 57. e6 {[%emt 0:00:02]} Qb5 {[%emt 0:00:04]} 58. Qf7+ {[%emt 0:00:01]} Kh6 {[%emt 0:00:01]} 59. Qf4+ {[%emt 0:00:01]} g5 {[%emt 0:00:00]} 60. b8=Q {[%emt 0:00:03] Weighted Error Value: White=0.40/Black=0.31} 1-0

[Event "Alef Super Stars Blitz 2023"]
[Site "Almamsha"]
[Date "2023.12.06"]
[Round "7.2"]
[White "Yu, Yangyi"]
[Black "Sjugirov, Sanan"]
[Result "0-1"]
[ECO "B30"]
[WhiteElo "2714"]
[BlackElo "2703"]
[Annotator "TA"]
[PlyCount "118"]
[EventDate "2023.11.27"]
[EventType "tourn"]
[EventCountry "UAE"]
[SourceTitle "playchess.com"]
[Source "ChessBase"]
[SourceQuality "1"]
[TimeControl "180+2"]

{[%evp 11,117,20,30,16,17,15,20,13,29,10,9,12,73,71,66,59,69,58,77,82,112,101,109,95,97,99,111,100,144,147,151,142,171,148,152,145,152,143,172,142,169,166,185,191,197,183,172,148,147,133,125,120,185,179,166,172,218,204,193,126,121,133,98,88,134,156,132,145,327,321,305,173,173,168,190,143,195,0,193,196,197,193,190,68,68,68,141,141,141,141,141,-29982,-29983,-29982,-12633,-5160,-5112,-5097,-5097,-29990,-29989,-29996,-29997,-29997,-29998,-29998,-29999,-29999]} 1. e4 {[%emt 0:00:00]} c5 {[%emt 0:00:01]} 2. Nf3 {[%emt 0:00:01]} Nc6 {[%emt 0:00:00]} 3. Nc3 {[%emt 0:00:01]} e5 {[%emt 0:00:01]} 4. Bc4 {[%emt 0:00:01]} d6 {[%emt 0:00:01]} 5. d3 {[%emt 0:00:01]} Be7 {[%emt 0:00:01]} 6. h3 {[%emt 0:00:04]} Nf6 {[%emt 0:00:12]} 7. Nh2 {[%emt 0:00:02] B30: Sicilian: 2...Nc6 3 Bb5, lines without ...g6.} a6 $5 {[%emt 0:00:06][%mdl 4] seems to push 7...0-0 aside. Exploring less charted territory.} 8. a4 {[%emt 0:00:05]} Be6 {[%emt 0:00:02]} 9. Ng4 {[%emt 0:00:02] The position is equal.} O-O {[%emt 0:00:09][%cal Of6e4]} 10. Nxf6+ {[%emt 0:00:04]} Bxf6 {[%emt 0:00:01]} 11. O-O {[%emt 0:00:04] [#]} Bg5 $5 $146 {[%emt 0:00:02][%mdl 8] New and interesting.} (11... Nb4 $11 {keeps the balance.}) ({Predecessor:} 11... Nb4 12. Bd2 Rb8 13. a5 Qd7 14. Na4 Bd8 15. f4 exf4 16. Bxf4 Rc8 17. c3 Nc6 {1-0 Supi,L (2582)-Quintiliano Pinto,R (2509) Gaudium Masters Final blitz 2023 (1.1)}) 12. Bxe6 $16 {[%emt 0:00:02]} fxe6 {[%emt 0:00:33]} 13. Qg4 $1 {[%emt 0:00:01][%csl LRe6,LRg5]} Bxc1 {[%emt 0:00:07]} 14. Qxe6+ {[%emt 0:00:01]} (14. Rfxc1 Rf6 15. Qh4 Qb6 $15) 14... Kh8 {[%emt 0:00:01]} 15. Raxc1 {[%emt 0:00:02]} ({Of course not} 15. Rfxc1 Nd4 16. Qg4 Qf6 $11) 15... Rf4 {[%emt 0:00:11]} 16. Ne2 {[%emt 0:00:11]} Rf6 {[%emt 0:00:01]} 17. Qg4 {[%emt 0:00:11]} Rg6 {[%emt 0:00:00]} 18. Qh5 {[%emt 0:00:08]} Rh6 {[%emt 0:00:17]} 19. Qf3 {[%emt 0:00:10]} Qg5 {[%emt 0:00:04]} 20. Qe3 {[%emt 0:00:04]} Qh4 {[%emt 0:00:32]} 21. f4 {[%emt 0:00:03]} Rf6 {[%emt 0:00:12]} 22. fxe5 {[%emt 0:00:16]} Nxe5 {[%emt 0:00:01]} 23. Rxf6 {[%emt 0:00:02]} Qxf6 {[%emt 0:00:01]} 24. Rf1 {[%emt 0:00:02]} Qe6 {[%emt 0:00:02]} 25. b3 {[%emt 0:00:08]} b5 {[%emt 0:00:01]} 26. Nf4 {[%emt 0:00:13]} Qd7 {[%emt 0:00:01]} 27. Nd5 {[%emt 0:00:01]} Rb8 {[%emt 0:00:03] Repels Nb6} 28. axb5 {[%emt 0:00:03]} axb5 {[%emt 0:00:01]} 29. Qf4 {[%emt 0:00:10][%cal Of4f8] Threatening mate with Qf8+!} h6 {[%emt 0:00:01]} 30. Qf5 {[%emt 0:00:01]} Qxf5 {[%emt 0:00:09]} 31. exf5 {[%emt 0:00:02][%mdl 4096] Endgame KRN-KRN} c4 {[%emt 0:00:05]} (31... Nc6 $16 32. f6 Kg8) 32. bxc4 {[%emt 0:00:10]} bxc4 {[%emt 0:00:00]} 33. d4 {[%emt 0:00:06]} Nc6 {[%emt 0:00:01]} (33... Nd7 $142 34. Ne3 Rb4) 34. c3 $18 {[%emt 0:00:01]} Rb5 {[%emt 0:00:05]} 35. Nc7 {[%emt 0:00:17]} (35. Nf4 $18) 35... Rb3 $16 {[%emt 0:00:07]} 36. f6 {[%emt 0:00:22]} gxf6 {[%emt 0:00:02]} 37. Rxf6 {[%emt 0:00:01]} Rxc3 {[%emt 0:00:02]} (37... Nxd4 $142 38. Rxh6+ (38. cxd4 c3 $16) 38... Kg8) 38. Rxh6+ {[%emt 0:00:02]} Kg8 {[%emt 0:00:05]} 39. Rxd6 {[%emt 0:00:01]} Nb4 $2 {[%emt 0:00:02]} (39... Ne7 $16 40. Kf2 Rd3) 40. Nd5 $1 $18 {[%emt 0:00:12]} Rc1+ {[%emt 0:00:02]} 41. Kh2 {[%emt 0:00:01]} (41. Kf2 $142 Nc2 42. Nf4) 41... Nc2 {[%emt 0:00:14]} 42. Rd7 {[%emt 0:00:20]} Kf8 {[%emt 0:00:04]} 43. Nf4 {[%emt 0:00:12]} (43. h4 $18 {Strongly threatening h5.} Nxd4 44. h5) 43... Ne3 {[%emt 0:00:04]} (43... Ke8 $16 {might work better.} 44. Rd5 Rd1) 44. Nd5 {[%emt 0:00:15]} Nc2 {[%emt 0:00:03]} 45. h4 {[%emt 0:00:07] Black must now prevent h5.} Nxd4 {[%emt 0:00:03]} 46. h5 {[%emt 0:00:01]} Nf5 {[%emt 0:00:10] Dodges h6} 47. g4 {[%emt 0:00:04]} ({Only move:} 47. Rc7 $1 $18) 47... c3 $1 $14 {[%emt 0:00:21][%cal Oc1d1]} 48. gxf5 {[%emt 0:00:05] White wants to mate with h6. KRN-KR} (48. Rc7 $5 c2 $8 49. gxf5 $14) 48... Rd1 {[%emt 0:00:03] [#]} (48... c2 $1 $14) 49. h6 $1 $16 {[%emt 0:00:03] h7 would kill now.} c2 {[%emt 0:00:06][%cal Od1h1]} 50. h7 {[%emt 0:00:01][%cal Rh7h8]} Rh1+ {[%emt 0:00:00]} 51. Kg2 $2 {[%emt 0:00:02][%mdl 8192]} (51. Kxh1 $16 c1=Q+ 52. Kh2 Qh6+ 53. Kg2 Qg5+ 54. Kh3 Qh5+ 55. Kg3 Qg5+ 56. Kh3 Qh5+ 57. Kg3 Qg5+ 58. Kf3 Qxf5+ 59. Nf4 Qxd7 60. h8=Q+ (60. h8=B $2 {too greedy.} Kf7 $19) 60... Kf7 61. Qh5+ Kf6 62. Qg6+ Ke7 63. Qg5+ Kf7 64. Qh5+ Ke7 65. Qh4+ Ke8 66. Qe1+ Qe7 67. Qb1) 51... c1=Q {[%emt 0:00:03]} (51... c1=R $2 52. Rd8+ Kg7 53. Rg8+ (53. f6+ Kxh7 54. f7 Rcg1+ 55. Kf3 Rf1+ 56. Kg2 Kg7 $11) 53... Kf7 54. h8=Q $18) 52. Rd8+ {[%emt 0:00:03]} Kf7 {[%emt 0:00:00]} (52... Kg7 $142 53. h8=B+ Rxh8 54. Rd7+ Kh6 55. Rd6+ Kg5 56. Rg6+ Kxf5 57. Ne7+ Ke5 58. Nc6+ Kf4 59. Rf6+ Kg5 60. Rf7 Qxc6+ 61. Kg1 Qe4 62. Rg7+ Kf4 63. Kf1 Rh1+ 64. Rg1 Kf3 65. Rxh1 Qb1#) 53. Rd7+ $19 {[%emt 0:00:01] [#]} Ke8 $1 {[%emt 0:00:03]} 54. Nf6+ {[%emt 0:00:04]} Kf8 {[%emt 0:00:01] ( -> ...Qf1+)} 55. Rd8+ {[%emt 0:00:02]} Ke7 {[%emt 0:00:00] Black mates.} 56. h8=Q {[%emt 0:00:05]} Qf1+ {[%emt 0:00:05]} 57. Kg3 {[%emt 0:00:00]} Rg1+ {[%emt 0:00:03]} 58. Kh4 {[%emt 0:00:00]} Qf4+ {[%emt 0:00:02]} 59. Kh5 {[%emt 0:00:01]} Qg5# {[%emt 0:00:00] Beautiful play by Sjugirov!   Weighted Error Value: White=0.35/Black=0.25 (precise)} 0-1